fUST/lending_fUST_20260116
["ID","MTS","AMOUNT","RATE_DAILY","PERIOD"]
[402182624,1768572643874,-171.177356,0.000221,2]
[402182625,1768572643884,-151.0,0.000221,2]
[402182626,1768572643895,-171.177356,0.000221,2]
[402182627,1768572643906,-665.324895,0.000221,2]
[402182628,1768572643916,-171.177356,0.000221,2]
[402182629,1768572643926,-665.324895,0.000221,2]
[402182630,1768572643936,-171.177356,0.000221,2]
[402182631,1768572643947,-665.324895,0.000221,2]
[402182632,1768572643957,-151.0,0.000221,2]
[402182633,1768572643968,-665.324895,0.000221,2]
[402182634,1768572643979,-151.0,0.000221,2]
[402182635,1768572643989,-272.280335,0.000221,2]
[402182636,1768572644000,-1425.627115,0.000221,2]
[402182637,1768572644011,-1425.627115,0.000221,2]
[402182638,1768572644021,-1425.627115,0.000221,2]
[402182639,1768572644032,-1425.627115,0.000221,2]
[402182640,1768572644042,-151.0,0.000221,2]
[402182641,1768572644053,-151.0,0.000221,2]
[402182642,1768572644064,-5835.16881564,0.0002211,2]
[402182643,1768572644075,-671.32800805,0.00022119,30]
[402182644,1768572644085,-239.85157891,0.00022137,7]
[402182645,1768572644096,-3000.0,0.00022142,7]
[402182646,1768572644108,-500.0,0.00022192,5]
[402182647,1768572644118,-243.28390715,0.0002222,2]
[402182648,1768572644128,-196.0,0.00022247,6]
[402182649,1768572644139,-1000.0,0.0002226,60]
[402182650,1768572644149,-894.33213787,0.0002226,110]
[402182651,1768572644159,-151.0,0.00022277,2]
[402182652,1768572644169,-718.80245104,0.00022336,91]
[402182653,1768572644179,-216.04065844,0.00022357,120]
[402182654,1768572644189,-5000.0,0.00022377,2]
[402182655,1768572644198,-1555.72895345,0.00022385,95]
[402182656,1768572644208,-2000.0,0.00022403,3]
[402182657,1768572644218,-239.85157891,0.00022411,7]
[402182658,1768572644229,-2000.0,0.00022412,3]
[402182659,1768572644240,-2000.0,0.00022412,3]
[402182660,1768572644250,-160.7889057,0.00022419,92]
[402182661,1768572644260,-2000.0,0.00022421,3]
[402182662,1768572644271,-2000.0,0.00022421,3]
[402182663,1768572644282,-2000.0,0.0002243,3]
[402182664,1768572644293,-2000.0,0.0002243,3]
[402182665,1768572644304,-2000.0,0.00022438,3]
[402182666,1768572644314,-2000.0,0.00022438,3]
[402182667,1768572644327,-151.0,0.00022447,2]
[402182668,1768572644337,-2000.0,0.00022447,3]
[402182669,1768572644347,-2000.0,0.00022447,3]
[402182670,1768572644362,-2000.0,0.00022456,3]
[402182671,1768572644373,-2000.0,0.00022456,3]
[402182672,1768572644383,-2000.0,0.00022465,3]
[402182673,1768572644393,-2000.0,0.00022465,3]
[402182674,1768572644403,-3449.14412057,0.00022466,2]
[402182675,1768572644413,-500.0,0.00022466,5]
[402182676,1768572644424,-300.0,0.00022466,2]
[402182677,1768572644435,-200.0,0.00022466,2]
[402182678,1768572644445,-250.0,0.00022466,2]
[402182679,1768572644455,-2000.0,0.00022474,3]
[402182680,1768572644465,-2000.0,0.00022474,3]
[402182681,1768572644477,-544.17413681,0.00022475,2]
[402182682,1768572644487,-2000.0,0.00022482,3]
[402182683,1768572644497,-2000.0,0.00022482,3]
[402182684,1768572644507,-293.91007087,0.00022483,102]
[402182685,1768572644517,-2000.0,0.00022491,3]
[402182686,1768572644528,-2000.0,0.00022491,3]
[402182687,1768572644538,-2000.0,0.00022491,3]
[402182688,1768572644548,-2000.0,0.00022499,7]
[402182689,1768572644558,-500.0,0.000225,2]
[402182690,1768572644568,-2000.0,0.000225,3]
[402182691,1768572644579,-2000.0,0.000225,3]
[402182692,1768572644588,-2000.0,0.000225,3]
[402182693,1768572644599,-7875.96755551,0.00022567,2]
[402182694,1768572644609,-2000.0,0.00022571,7]
[402182695,1768572644619,-2000.0,0.00022596,7]
[402182696,1768572644631,-2000.0,0.00022604,7]
[402182697,1768572644642,-2000.0,0.00022613,7]
[402182698,1768572644652,-2000.0,0.00022622,7]
[402182699,1768572644663,-718.80245104,0.00022633,95]
[402182700,1768572644673,-10000.0,0.000227,4]
[402182701,1768572644683,-500.0,0.0002274,5]
[402182702,1768572644694,-199.87631576,0.0002274,7]
[402182703,1768572644704,-1555.72895345,0.00022744,98]
[402182704,1768572644715,-3054.34,0.000228,14]
[402182705,1768572644725,-1591.0,0.00022838,10]
[402182706,1768572644735,-7065.90960138,0.00022885,2]
[402182707,1768572644746,-5000.0,0.00022885,2]
[402182708,1768572644756,-6967.9775393,0.00022885,2]
[402182709,1768572644766,-5000.0,0.00022885,2]
[402182710,1768572644777,-151.0,0.0002292,2]
[402182711,1768572644788,-718.80245104,0.0002293,98]
[402182712,1768572644798,-2000.0,0.00022999,7]
[402182713,1768572644807,-1041.66666667,0.00023,3]
[402182714,1768572644817,-3576.76245303,0.00023014,2]
[402182715,1768572644827,-500.0,0.00023014,5]
[402182716,1768572644837,-450.0,0.00023014,2]
[402182717,1768572644847,-261.16480415,0.00023014,2]
[402182718,1768572644857,-350.0,0.00023014,2]
[402182719,1768572644925,-293.91007087,0.00023028,110]
[402182720,1768572644940,-1000.0,0.000231,7]
[402182721,1768572644952,-176.42,0.000231,7]
[402182722,1768572644963,-1555.72895345,0.00023104,102]
[402182723,1768572644973,-154.17015446,0.00023129,110]
[402182724,1768572644983,-208.52,0.000232,7]
[402182725,1768572644994,-18434.41,0.000232,2]
[402182726,1768572645004,-718.80245104,0.00023228,102]
[402182727,1768572645014,-3000.0,0.00023238,7]
[402182728,1768572645025,-500.0,0.00023288,5]
[402182729,1768572645035,-198.0,0.00023342,9]
[402182731,1768572645046,-160.0,0.00023381,4]
[402182733,1768572645056,-161.34679132,0.00023381,5]
[402182734,1768572645066,-5000.0,0.00023436,2]
[402182735,1768572645076,-5058.31950271,0.00023452,2]
[402182736,1768572645086,-1555.72895345,0.00023463,106]
[402182737,1768572645096,-2000.0,0.00023499,7]
[402182738,1768572645107,-718.80245104,0.00023525,106]
[402182739,1768572645117,-3709.10266379,0.00023562,2]
[402182740,1768572645127,-500.0,0.00023562,5]
[402182741,1768572645137,-600.0,0.00023562,2]
[402182742,1768572645148,-473.17242877,0.00023562,2]
[402182744,1768572645158,-151.0,0.00023562,2]
[402182746,1768572645168,-200.0,0.00023562,30]
[402182748,1768572645178,-200.0,0.00023562,30]
[402182749,1768572645188,-200.0,0.00023562,30]
[402182750,1768572645197,-9683.70525401,0.00023577,2]
[402182751,1768572645207,-3054.34,0.000237,14]
[402182752,1768572645217,-1000.0,0.00023797,10]
[402182753,1768572645226,-1000.0,0.00023797,10]
[402182754,1768572645236,-1555.72895345,0.00023822,110]
[402182755,1768572645247,-718.80245104,0.00023822,110]
[402182756,1768572645257,-524.13,0.00023835,2]
[402182757,1768572645269,-500.0,0.00023836,5]
[402182758,1768572645280,-7875.96755551,0.000239,2]
[402182759,1768572645293,-1065.0,0.00023935,7]
[402182760,1768572645304,-2000.0,0.00023999,7]
[402182761,1768572645314,-261.9410967,0.00024,2]
[402182762,1768572645325,-10000.0,0.00024,4]
[402182763,1768572645335,-10000.0,0.00024,2]
[402182764,1768572645345,-13978.91601931,0.00024,2]
[402182765,1768572645357,-1041.66666667,0.00024,7]
[402182766,1768572645368,-5000.0,0.00024002,2]
[402182767,1768572645377,-151.0,0.000241,2]
[402182768,1768572645388,-176.42,0.000241,7]
[402182769,1768572645398,-604.65152612,0.000241,2]
[402182770,1768572645410,-524.13,0.00024109,2]
[402182771,1768572645420,-3846.33946235,0.0002411,2]
[402182772,1768572645431,-500.0,0.0002411,5]
[402182773,1768572645441,-750.0,0.0002411,2]
[402182774,1768572645451,-199087.80021018,0.00024142,2]
[402182775,1768572645461,-151.0,0.00024142,2]
[402182776,1768572645471,-153.445155,0.00024142,2]
[402182777,1768572645481,-151.0,0.00024142,2]
[402182778,1768572645492,-190.377866,0.00024142,2]
[402182779,1768572645502,-475.393017,0.00024142,2]
[402182780,1768572645512,-475.393017,0.00024142,2]
[402182781,1768572645522,-475.393017,0.00024142,2]
[402182782,1768572645533,-151.0,0.00024142,2]
[402182783,1768572645543,-475.393017,0.00024142,2]
[402182784,1768572645553,-185.289111,0.00024142,2]
[402182785,1768572645563,-185.289111,0.00024142,2]
[402182787,1768572645573,-185.289111,0.00024142,2]
[402182789,1768572645583,-185.289111,0.00024142,2]
[402182790,1768572645593,-151.0,0.00024142,2]
[402182791,1768572645605,-155.756613,0.00024142,2]
[402182792,1768572645615,-151.0,0.00024142,2]
[402182793,1768572645625,-208.52,0.000242,7]
[402182795,1768572645635,-18434.41,0.000242,2]
[402182796,1768572645645,-151.0,0.000242,2]
[402182797,1768572645656,-151.0,0.000242,2]
[402182798,1768572645666,-397.116198,0.000242,2]
[402182799,1768572645676,-397.116198,0.000242,2]
[402182800,1768572645687,-397.116198,0.000242,2]
[402182801,1768572645697,-397.116198,0.000242,2]
[402182802,1768572645707,-428.653115,0.000242,2]
[402182803,1768572645717,-428.653115,0.000242,2]
[402182804,1768572645727,-428.653115,0.000242,2]
[402182805,1768572645738,-428.653115,0.000242,2]
[402182806,1768572645748,-151.000085,0.000242,2]
[402182807,1768572645758,-650.330857,0.000242,2]
[402182808,1768572645768,-650.330857,0.000242,2]
[402182809,1768572645778,-650.330857,0.000242,2]
[402182810,1768572645788,-657.268275,0.000242,2]
[402182811,1768572645798,-657.268275,0.000242,2]
[402182812,1768572645808,-657.268275,0.000242,2]
[402182813,1768572645818,-657.268275,0.000242,2]
[402182814,1768572645829,-151.0,0.000242,2]
[402182815,1768572645839,-151.0,0.000242,2]
[402182816,1768572645849,-171.590928,0.000242,2]
[402182817,1768572645859,-151.0,0.000242,2]
[402182818,1768572645869,-151.0,0.000242,2]
[402182819,1768572645879,-151.0,0.000242,2]
[402182820,1768572645890,-151.0,0.000242,2]
[402182821,1768572645900,-151.0,0.000242,2]
[402182822,1768572645911,-151.0,0.000242,2]
[402182823,1768572645921,-151.0,0.000242,2]
[402182824,1768572645932,-1665.057083,0.000242,2]
[402182825,1768572645942,-1665.057083,0.000242,2]
[402182827,1768572645953,-1665.057083,0.000242,2]
[402182828,1768572645964,-1665.057083,0.000242,2]
[402182829,1768572645974,-151.0,0.000242,2]
[402182830,1768572645984,-151.0,0.000242,2]
[402182831,1768572645994,-151.0,0.000242,2]
[402182832,1768572646004,-1077.62458,0.000242,2]
[402182833,1768572646015,-313.454305,0.000242,2]
[402182834,1768572646025,-1077.62458,0.000242,2]
[402182835,1768572646035,-313.454305,0.000242,2]
[402182836,1768572646045,-1077.62458,0.000242,2]
[402182837,1768572646056,-313.454305,0.000242,2]
[402182838,1768572646066,-313.454305,0.000242,2]
[402182839,1768572646077,-1077.62458,0.000242,2]
[402182840,1768572646087,-170.317,0.00024293,2]
[402182841,1768572646097,-1367.0,0.00024293,2]
[402182842,1768572646107,-2147.0,0.00024293,2]
[402182843,1768572646117,-3000.0,0.00024334,7]
[402182844,1768572646127,-524.13,0.00024383,2]
[402182845,1768572646139,-500.0,0.00024384,5]
[402182846,1768572646149,-199.0,0.00024438,13]
[402182847,1768572646159,-591.26612942,0.00024475,2]
[402182848,1768572646169,-2000.0,0.00024499,7]
[402182849,1768572646180,-1126.0,0.000245,5]
[402182850,1768572646190,-151.0,0.00024599,2]
[402182851,1768572646200,-151.0,0.00024599,2]
[402182852,1768572646210,-118757.96259932,0.0002465,2]
[402182853,1768572646220,-514.22907277,0.0002465,2]
[402182854,1768572646231,-38119.3193462,0.0002465,2]
[402182855,1768572646242,-151.0,0.0002465,2]
[402182856,1768572646253,-151.0,0.0002465,2]
[402182857,1768572646264,-159.231334,0.0002465,2]
[402182858,1768572646275,-151.0,0.0002465,2]
[402182859,1768572646289,-151.0,0.0002465,2]
[402182860,1768572646299,-152.289267,0.0002465,2]
[402182861,1768572646309,-157.40294,0.0002465,2]
[402182862,1768572646319,-616.514048,0.0002465,2]
[402182863,1768572646331,-616.514048,0.0002465,2]
[402182864,1768572646341,-616.514048,0.0002465,2]
[402182865,1768572646352,-616.514048,0.0002465,2]
[402182866,1768572646365,-151.0,0.0002465,2]
[402182867,1768572646376,-158.320232,0.0002465,2]
[402182868,1768572646386,-151.0,0.0002465,2]
[402182869,1768572646397,-196.036808,0.0002465,2]
[402182870,1768572646408,-196.036808,0.0002465,2]
[402182871,1768572646418,-196.036808,0.0002465,2]
[402182872,1768572646429,-196.036808,0.0002465,2]
[402182873,1768572646439,-151.0,0.0002465,2]
[402182874,1768572646449,-226.926693,0.0002465,2]
[402182875,1768572646459,-179.431726,0.0002465,2]
[402182876,1768572646471,-179.431726,0.0002465,2]
[402182877,1768572646481,-179.431726,0.0002465,2]
[402182878,1768572646490,-151.0,0.0002465,2]
[402182879,1768572646498,-179.431726,0.0002465,2]
[402182880,1768572646507,-151.0,0.0002465,2]
[402182881,1768572646516,-185.826603,0.0002465,2]
[402182882,1768572646524,-151.0,0.0002465,2]
[402182883,1768572646532,-251.996074,0.0002465,2]
[402182884,1768572646541,-203.110444,0.0002465,2]
[402182885,1768572646550,-203.110444,0.0002465,2]
[402182886,1768572646559,-203.110444,0.0002465,2]
[402182887,1768572646567,-203.110444,0.0002465,2]
[402182888,1768572646577,-238.761478,0.0002465,2]
[402182889,1768572646586,-238.761478,0.0002465,2]
[402182890,1768572646594,-238.761478,0.0002465,2]
[402182891,1768572646603,-238.761478,0.0002465,2]
[402182892,1768572646613,-151.0,0.0002465,2]
[402182893,1768572646623,-151.0,0.0002465,2]
[402182894,1768572646633,-285.364697,0.0002465,2]
[402182895,1768572646642,-212.612176,0.0002465,2]
[402182896,1768572646652,-151.0,0.0002465,2]
[402182897,1768572646662,-171.177356,0.0002465,2]
[402182898,1768572646672,-151.0,0.0002465,2]
[402182899,1768572646683,-171.177356,0.0002465,2]
[402182900,1768572646693,-665.324895,0.0002465,2]
[402182901,1768572646703,-171.177356,0.0002465,2]
[402182902,1768572646713,-665.324895,0.0002465,2]
[402182903,1768572646722,-171.177356,0.0002465,2]
[402182904,1768572646732,-665.324895,0.0002465,2]
[402182905,1768572646741,-151.0,0.0002465,2]
[402182906,1768572646751,-665.324895,0.0002465,2]
[402182907,1768572646761,-151.0,0.0002465,2]
[402182908,1768572646772,-1425.627115,0.0002465,2]
[402182909,1768572646781,-1425.627115,0.0002465,2]
[402182910,1768572646791,-1425.627115,0.0002465,2]
[402182911,1768572646811,-1425.627115,0.0002465,2]
[402182912,1768572646823,-151.0,0.0002465,2]
[402182913,1768572646833,-524.13,0.00024657,2]
[402182914,1768572646844,-500.0,0.00024658,5]
[402182915,1768572646861,-900.0,0.00024658,2]
[402182916,1768572646875,-200.0,0.00024658,2]
[402182917,1768572646886,-380.0,0.00024658,2]
[402182918,1768572646897,-3988.65402246,0.00024658,2]
[402182919,1768572646908,-500.0,0.00024658,2]
[402182920,1768572646918,-3054.34,0.000247,14]
[402182921,1768572646929,-16836.12060946,0.00024774,2]
[402182922,1768572646939,-500.0,0.00024795,2]
[402182923,1768572646951,-151.0,0.000249,7]
[402182924,1768572646961,-151.0,0.000249,7]
[402182925,1768572646971,-151.0,0.000249,7]
[402182926,1768572646982,-151.0,0.000249,7]
[402182927,1768572646993,-151.0,0.000249,7]
[402182928,1768572647003,-616.514048,0.000249,7]
[402182929,1768572647013,-616.514048,0.000249,7]
[402182930,1768572647023,-616.514048,0.000249,7]
[402182931,1768572647033,-616.514048,0.000249,7]
[402182932,1768572647043,-151.0,0.000249,7]
[402182933,1768572647053,-151.0,0.000249,7]
[402182934,1768572647063,-196.036808,0.000249,7]
[402182935,1768572647073,-196.036808,0.000249,7]
[402182936,1768572647084,-196.036808,0.000249,7]
[402182937,1768572647094,-196.036808,0.000249,7]
[402182938,1768572647105,-151.0,0.000249,7]
[402182939,1768572647115,-179.431726,0.000249,7]
[402182940,1768572647125,-179.431726,0.000249,7]
[402182941,1768572647136,-179.431726,0.000249,7]
[402182942,1768572647146,-151.0,0.000249,7]
[402182943,1768572647157,-179.431726,0.000249,7]
[402182944,1768572647168,-155.162737,0.000249,7]
[402182945,1768572647178,-151.0,0.000249,7]
[402182946,1768572647189,-203.110444,0.000249,7]
[402182947,1768572647200,-203.110444,0.000249,7]
[402182948,1768572647210,-203.110444,0.000249,7]
[402182949,1768572647220,-203.110444,0.000249,7]
[402182950,1768572647230,-238.761478,0.000249,7]
[402182951,1768572647240,-238.761478,0.000249,7]
[402182952,1768572647250,-238.761478,0.000249,7]
[402182953,1768572647261,-238.761478,0.000249,7]
[402182954,1768572647271,-151.0,0.000249,7]
[402182955,1768572647281,-151.0,0.000249,7]
[402182956,1768572647293,-151.0,0.000249,7]
[402182957,1768572647304,-151.0,0.000249,7]
[402182958,1768572647314,-151.0,0.000249,7]
[402182959,1768572647326,-171.177356,0.000249,7]
[402182960,1768572647336,-151.0,0.000249,7]
[402182961,1768572647347,-171.177356,0.000249,7]
[402182962,1768572647359,-665.324895,0.000249,7]
[402182963,1768572647369,-171.177356,0.000249,7]
[402182964,1768572647379,-665.324895,0.000249,7]
[402182965,1768572647391,-171.177356,0.000249,7]
[402182966,1768572647403,-665.324895,0.000249,7]
[402182967,1768572647417,-151.0,0.000249,7]
[402182968,1768572647443,-665.324895,0.000249,7]
[402182969,1768572647454,-151.0,0.000249,7]
[402182970,1768572647464,-1425.627115,0.000249,7]
[402182971,1768572647475,-1425.627115,0.000249,7]
[402182972,1768572647487,-1425.627115,0.000249,7]
[402182973,1768572647501,-1425.627115,0.000249,7]
[402182974,1768572647511,-182.579738,0.000249,7]
[402182975,1768572647522,-397.116198,0.000249,7]
[402182976,1768572647534,-397.116198,0.000249,7]
[402182977,1768572647550,-397.116198,0.000249,7]
[402182978,1768572647562,-397.116198,0.000249,7]
[402182979,1768572647577,-428.653115,0.000249,7]
[402182980,1768572647589,-428.653115,0.000249,7]
[402182981,1768572647599,-428.653115,0.000249,7]
[402182982,1768572647610,-428.653115,0.000249,7]
[402182983,1768572647621,-650.330857,0.000249,7]
[402182984,1768572647656,-650.330857,0.000249,7]
[402182985,1768572647667,-650.330857,0.000249,7]
[402182986,1768572647681,-657.268275,0.000249,7]
[402182987,1768572647692,-657.268275,0.000249,7]
[402182988,1768572647703,-657.268275,0.000249,7]
[402182989,1768572647715,-657.268275,0.000249,7]
[402182990,1768572647726,-151.0,0.000249,7]
[402182991,1768572647737,-151.0,0.000249,7]
[402182992,1768572647747,-601949.728948,0.000249,2]
[402182993,1768572647758,-224.352853,0.000249,7]
[402182994,1768572647769,-151.0,0.000249,7]
[402182995,1768572647780,-151.0,0.000249,7]
[402182996,1768572647791,-151.0,0.000249,7]
[402182997,1768572647802,-151.0,0.000249,7]
[402182998,1768572647819,-151.0,0.000249,7]
[402182999,1768572647838,-151.0,0.000249,2]
[402183000,1768572647850,-1665.057083,0.000249,7]
[402183001,1768572647874,-1665.057083,0.000249,7]
[402183002,1768572647896,-1665.057083,0.000249,7]
[402183003,1768572647929,-1665.057083,0.000249,7]
[402183004,1768572647951,-160.454651,0.000249,7]
[402183005,1768572647968,-158.115627,0.000249,7]
[402183006,1768572647981,-193.606375,0.000249,7]
[402183007,1768572647999,-1077.62458,0.000249,7]
[402183008,1768572648017,-313.454305,0.000249,7]
[402183009,1768572648034,-1077.62458,0.000249,7]
[402183010,1768572648068,-313.454305,0.000249,7]
[402183011,1768572648080,-1077.62458,0.000249,7]
[402183012,1768572648093,-313.454305,0.000249,7]
[402183013,1768572648105,-313.454305,0.000249,7]
[402183014,1768572648116,-1077.62458,0.000249,7]
[402183015,1768572648135,-151.0,0.000249,7]
[402183016,1768572648148,-151.0,0.000249,7]
[402183017,1768572648159,-475.393017,0.000249,7]
[402183018,1768572648172,-475.393017,0.000249,7]
[402183019,1768572648184,-475.393017,0.000249,7]
[402183020,1768572648197,-151.0,0.000249,7]
[402183021,1768572648208,-475.393017,0.000249,7]
[402183022,1768572648221,-185.289111,0.000249,7]
[402183023,1768572648233,-185.289111,0.000249,7]
[402183024,1768572648247,-185.289111,0.000249,7]
[402183025,1768572648258,-185.289111,0.000249,7]
[402183026,1768572648287,-151.0,0.000249,7]
[402183027,1768572648318,-151.0,0.000249,7]
[402183028,1768572648362,-524.13,0.00024931,2]
[402183029,1768572648382,-500.0,0.00024932,5]
[402183030,1768572648410,-500.0,0.00024932,2]
[402183031,1768572648423,-1210.924005,0.0002498,5]
[402183032,1768572648437,-2000.0,0.00024999,7]
[402183033,1768572648448,-155485.69389668,0.00025,15]
[402183034,1768572648459,-50000.0,0.00025,30]
[402183035,1768572648478,-2000.0,0.00025,2]
[402183036,1768572648489,-200.0,0.00025,17]
[402183037,1768572648502,-20000.0,0.00025,4]
[402183038,1768572648514,-140000.0,0.00025,2]
[402183039,1768572648533,-500.0,0.00025,30]
[402183040,1768572648545,-111528.65958939,0.00025,15]
[402183041,1768572648557,-10000.0,0.00025,2]
[402183042,1768572648569,-151.0,0.00025,7]
[402183043,1768572648581,-151.0,0.00025,7]
[402183044,1768572648594,-151.0,0.00025,7]
[402183045,1768572648622,-151.0,0.00025,7]
[402183046,1768572648639,-151.0,0.00025,7]
[402183047,1768572648660,-616.514048,0.00025,7]
[402183048,1768572648673,-616.514048,0.00025,7]
[402183049,1768572648691,-616.514048,0.00025,7]
[402183050,1768572648704,-616.514048,0.00025,7]
[402183051,1768572648732,-151.0,0.00025,7]
[402183052,1768572648745,-151.0,0.00025,7]
[402183053,1768572648757,-196.036808,0.00025,7]
[402183054,1768572648769,-196.036808,0.00025,7]
[402183055,1768572648781,-196.036808,0.00025,7]
[402183056,1768572648793,-196.036808,0.00025,7]
[402183057,1768572648806,-151.0,0.00025,7]
[402183058,1768572648817,-179.431726,0.00025,7]
[402183059,1768572648828,-1000.0,0.00025,5]
[402183060,1768572648839,-179.431726,0.00025,7]
[402183061,1768572648851,-179.431726,0.00025,7]
[402183062,1768572648863,-151.0,0.00025,7]
[402183063,1768572648875,-179.431726,0.00025,7]
[402183064,1768572648894,-151.0,0.00025,7]
[402183065,1768572648908,-203.110444,0.00025,7]
[402183066,1768572648919,-203.110444,0.00025,7]
[402183067,1768572648940,-203.110444,0.00025,7]
[402183068,1768572648952,-203.110444,0.00025,7]
[402183069,1768572648964,-238.761478,0.00025,7]
[402183070,1768572648978,-238.761478,0.00025,7]
[402183071,1768572648991,-238.761478,0.00025,7]
[402183072,1768572649004,-238.761478,0.00025,7]
[402183073,1768572649017,-184.0,0.00025,7]
[402183074,1768572649030,-168.0,0.00025,7]
[402183075,1768572649042,-293.32899138,0.00025,30]
[402183076,1768572649055,-500.0,0.00025069,2]
[402183077,1768572649066,-1000.0,0.000251,7]
[402183078,1768572649080,-176.42,0.000251,7]
[402183079,1768572649092,-524.13,0.00025205,2]
[402183080,1768572649103,-4808.09,0.00025205,2]
[402183081,1768572649115,-500.0,0.00025205,5]
[402183082,1768572649127,-250.0,0.00025205,2]
[402183083,1768572649140,-287.94961945,0.00025205,2]
[402183084,1768572649155,-500.0,0.00025206,2]
[402183085,1768572649172,-7875.96755551,0.00025233,2]
[402183086,1768572649184,-208.52,0.000253,7]
[402183087,1768572649195,-500.0,0.00025343,2]
[402183088,1768572649207,-3000.0,0.0002543,7]
[402183089,1768572649219,-524.13,0.00025479,2]
[402183090,1768572649232,-500.0,0.00025479,5]
[402183091,1768572649243,-500.0,0.0002548,2]
[402183092,1768572649257,-2000.0,0.00025499,7]
[402183093,1768572649270,-18434.41,0.000255,2]
[402183094,1768572649281,-200.0,0.00025534,17]
[402183095,1768572649295,-500.0,0.00025617,2]
[402183096,1768572649309,-5000.0,0.00025627,2]
[402183097,1768572649327,-3054.34,0.000257,14]
[402183098,1768572649339,-524.13,0.00025753,2]
[402183099,1768572649353,-500.0,0.00025753,5]
[402183100,1768572649369,-350.0,0.00025753,2]
[402183101,1768572649384,-500.0,0.00025754,2]
[402183102,1768572649396,-168.0,0.0002589,7]
[402183103,1768572649408,-500.0,0.00025891,2]
[402183104,1768572649420,-2000.0,0.00025999,7]
[402183105,1768572649437,-2000.0,0.00026,7]
[402183106,1768572649477,-6803.24817253,0.00026,10]
[402183107,1768572649489,-530.08019871,0.00026,2]
[402183108,1768572649502,-896.18087791,0.00026,2]
[402183109,1768572649516,-161.0,0.00026,5]
[402183110,1768572649536,-10000.0,0.00026,2]
[402183111,1768572649562,-151.0,0.00026,7]
[402183112,1768572649581,-151.0,0.00026,7]
[402183113,1768572649594,-151.0,0.00026,7]
[402183114,1768572649614,-151.0,0.00026,7]
[402183115,1768572649629,-151.0,0.00026,7]
[402183116,1768572649647,-171.177356,0.00026,7]
[402183117,1768572649660,-151.0,0.00026,7]
[402183118,1768572649678,-171.177356,0.00026,7]
[402183119,1768572649690,-665.324895,0.00026,7]
[402183120,1768572649703,-171.177356,0.00026,7]
[402183121,1768572649717,-665.324895,0.00026,7]
[402183122,1768572649730,-171.177356,0.00026,7]
[402183123,1768572649748,-665.324895,0.00026,7]
[402183124,1768572649762,-151.0,0.00026,7]
[402183125,1768572649780,-665.324895,0.00026,7]
[402183126,1768572649794,-151.0,0.00026,7]
[402183127,1768572649807,-1425.627115,0.00026,7]
[402183128,1768572649821,-1425.627115,0.00026,7]
[402183129,1768572649835,-1425.627115,0.00026,7]
[402183130,1768572649846,-1425.627115,0.00026,7]
[402183131,1768572649858,-397.116198,0.00026,7]
[402183132,1768572649872,-397.116198,0.00026,7]